{"text_format":"1","workbook":"xlsx","n_sheets":18,"sheets":["Vejledning","Medarbejder 1","Medarbejder 2","Medarbejder 3","Medarbejder 4","Medarbejder 5","Medarbejder 6","Medarbejder 7","Medarbejder 8","Medarbejder 9","Medarbejder 10","Medarbejder 11","Medarbejder 12","Medarbejder 13","Medarbejder 14","Medarbejder 15","Budget","Slutregnskab"],"not_rendered":{"charts":0,"images":0,"macros":1,"external_links":1,"defined_names":0,"comments":0,"pivot_tables":0},"unopened":[],"bounds":{"document_bytes":16777216,"sheet_cells":100000,"rows_first":2000,"rows_last":500,"rows_between":2000,"halvings":0,"cell_chars":16384,"cell_head_chars":4096},"cells_cut":0,"cells_raw":0,"read":"whole","date_system":"1900"}

{"sheet":"Vejledning","index":0,"n_rows":0,"n_cols":0,"rows_kept":0,"cut":false,"hidden":false,"merged":[]}

{"sheet":"Medarbejder 1","index":1,"n_rows":54,"n_cols":5,"rows_kept":54,"cut":false,"hidden":false,"merged":[[14,1,14,2],[6,1,6,2],[7,1,7,2],[8,1,8,3],[9,1,9,3],[13,1,13,2],[30,1,30,2],[15,1,15,2],[16,1,16,2],[17,1,17,2],[18,1,18,2],[23,1,23,2],[24,1,24,2],[25,1,25,2],[26,1,26,2],[27,1,27,2],[28,1,28,2],[29,1,29,2],[50,3,51,3],[31,1,31,2],[32,1,32,2],[33,1,33,2],[34,1,34,2],[35,1,35,2],[50,1,51,2]]}
[]
[null,null,"Budget/Regnskab for sporskiftepakken"]
[]
[null,null,"Oplysninger om medarbejderen"]
[]
[{"$f":"_xlfn.NUMBERVALUE(RIGHT(C6,1))","v":1},null,"Medarbejder 1"]
[null,"Medarbejderens lønkompensation fra sporskifte (kr./t.) Maks 260 kr.",null,{"$f":"IF(D8=\"\",0,MIN(D8,260))","v":0}]
[null,"Medarbejderens timesats (kr./t.)"]
[null,"Beskriv herunder hvad formålet med den planlagte sporskiftepakke er for medarbejderen:"]
[]
[]
[null,null,"Aktiviteter"]
[]
[null,"Afklaring, vejledning mv. \nSkriv navn på kursus",null,"Medarbejderens timeforbug (timer)","Evt. deltagerbetaling (kr.)"]
[]
[]
[]
[]
[]
[null,"Samlet antal timer (udregner selv)",null,{"$f":"SUM(D15:D19)","v":0}]
[null,"Samlet lønkompensation (udregner selv)",null,{"$f":"D20*D7","v":0}]
[null,"Samlet deltagerbeltaing (udregner selv)",null,{"$f":"SUM(E15:E19)","v":0}]
[]
[null,"Erhversrettet efteruddannelse\nSkriv navn på efteruddannelse",null,"Medarbejderens timeforbrug (timer)","Evt. deltagerbetaling (kr.)"]
[]
[]
[]
[]
[]
[]
[]
[]
[]
[]
[]
[null,"Kørsel/transport (angives som faktisk udgift)"]
[null,"Samlet antal timer (udregner selv)",null,{"$f":"SUM(D25:D36)","v":0}]
[null,"Samlet lønkompensation (udregner selv)",null,{"$f":"D37*D7","v":0}]
[null,"Samlet deltagerbetaling (udregner selv)",null,{"$f":"SUM(E25:E36)","v":0}]
[]
[null,"Praktik"]
[null,"Navn på virksomhed og p-nummer"]
[null,"Medarbejderens timeforbrug",null,null,{"$f":"IF(D43>C46*0.5,\"Praktik må maksimalt udgøre 50% af det samlede tidsforbrug.\",\" \")","v":" "}]
[null,"Samlet lønkompensation for praktikopholdet",null,{"$f":"IF(D43>C46*0.5,\"IKKE MULIGT\",D43*(IF(D8>261,260,D8)))","v":0}]
[]
[null,"Samlet tidsforbrug ",{"$f":"IF(D43+D37+D20>300,\"IKKE MULIGT\",D43+D37+D20)","v":0},{"$f":"IF(C46>300,\"Det maksimale tidsforbrug er 300 timer\",\" \")","v":" "}]
[]
[null,"Tidsforbrug til administration","Antal timer","Beløb"]
[null,"Der kan godtgøres op til 5 timer.",null,{"$f":"IF(C49>5,\"Der kan maksimalt godtgøres 5 timer pr. medarbejder.\",C49*260)","v":0}]
[]
[null,"Samlet tilsagnsramme i kr. (maksimal støtte til sporskiftepakken): ",null,{"$f":"IF(C46>300,0,MIN(D44+D39+D38+D22+D21+D49,120000))","v":0},{"$f":"IF(D51=120000,\"Det maksimale tilsagn pr. sporskiftepakke er nået, og det overstigende beløb er derfor selvbetaling.\",\"\")","v":""}]
[]
[]
[null,"Selvbetaling i kr. (udgifter udover den øvre tilsagnsramme)",null,{"$f":"IF(C46>300,0,IF(D51=120000,D39+D22+D38+D44+D21+D49-120000,0))","v":0}]

{"sheet":"Medarbejder 2","index":2,"n_rows":54,"n_cols":5,"rows_kept":54,"cut":false,"hidden":true,"merged":[[14,1,14,2],[6,1,6,2],[7,1,7,2],[8,1,8,3],[9,1,9,3],[13,1,13,2],[30,1,30,2],[15,1,15,2],[16,1,16,2],[17,1,17,2],[18,1,18,2],[23,1,23,2],[24,1,24,2],[25,1,25,2],[26,1,26,2],[27,1,27,2],[28,1,28,2],[29,1,29,2],[50,3,51,3],[31,1,31,2],[32,1,32,2],[33,1,33,2],[34,1,34,2],[35,1,35,2],[50,1,51,2]]}
[23232]
[null,null,"Budget/Regnskab for sporskiftepakken"]
[]
[null,null,"Oplysninger om medarbejderen"]
[]
[{"$f":"_xlfn.NUMBERVALUE(RIGHT(C6,1))","v":2},null,"Medarbejder 2"]
[null,"Medarbejderens lønkompensation fra sporskifte (kr./t.) Maks 260 kr.",null,{"$f":"IF(D8=\"\",0,MIN(D8,260))","v":0}]
[null,"Medarbejderens timesats (kr./t.)"]
[null,"Beskriv herunder hvad formålet med den planlagte sporskiftepakke er for medarbejderen:"]
[]
[]
[null,null,"Aktiviteter"]
[]
[null,"Afklaring, vejledning mv. \nSkriv navn på kursus",null,"Medarbejderens timeforbug (timer)","Evt. deltagerbetaling (kr.)"]
[]
[]
[]
[]
[]
[null,"Samlet antal timer (udregner selv)",null,{"$f":"SUM(D15:D19)","v":0}]
[null,"Samlet lønkompensation (udregner selv)",null,{"$f":"D20*D7","v":0}]
[null,"Samlet deltagerbeltaing (udregner selv)",null,{"$f":"SUM(E15:E19)","v":0}]
[]
[null,"Erhversrettet efteruddannelse\nSkriv navn på efteruddannelse",null,"Medarbejderens timeforbrug (timer)","Evt. deltagerbetaling (kr.)"]
[]
[]
[]
[]
[]
[]
[]
[]
[]
[]
[]
[null,"Kørsel/transport (angives som faktisk udgift)"]
[null,"Samlet antal timer (udregner selv)",null,{"$f":"SUM(D25:D36)","v":0}]
[null,"Samlet lønkompensation (udregner selv)",null,{"$f":"D37*D7","v":0}]
[null,"Samlet deltagerbetaling (udregner selv)",null,{"$f":"SUM(E25:E36)","v":0}]
[]
[null,"Praktik"]
[null,"Navn på virksomhed og p-nummer"]
[null,"Medarbejderens timeforbrug",null,null,{"$f":"IF(D43>C46*0.5,\"Praktik må maksimalt udgøre 50% af det samlede tidsforbrug.\",\" \")","v":" "}]
[null,"Samlet lønkompensation for praktikopholdet",null,{"$f":"IF(D43>C46*0.5,\"IKKE MULIGT\",D43*(IF(D8>261,260,D8)))","v":0}]
[]
[null,"Samlet tidsforbrug ",{"$f":"IF(D43+D37+D20>300,\"IKKE MULIGT\",D43+D37+D20)","v":0},{"$f":"IF(C46>300,\"Det maksimale tidsforbrug er 300 timer\",\" \")","v":" "}]
[]
[null,"Tidsforbrug til administration","Antal timer","Beløb"]
[null,"Der kan godtgøres op til 5 timer.",null,{"$f":"IF(C49>5,\"Der kan maksimalt godtgøres 5 timer pr. medarbejder.\",C49*260)","v":0}]
[]
[null,"Samlet tilsagnsramme i kr. (maksimal støtte til sporskiftepakken): ",null,{"$f":"IF(C46>300,0,MIN(D44+D39+D38+D22+D21+D49,120000))","v":0},{"$f":"IF(D51=120000,\"Det maksimale tilsagn pr. sporskiftepakke er nået, og det overstigende beløb er derfor selvbetaling.\",\"\")","v":""}]
[]
[]
[null,"Selvbetaling i kr. (udgifter udover den øvre tilsagnsramme)",null,{"$f":"IF(C46>300,0,IF(D51=120000,D39+D22+D38+D44+D21+D49-120000,0))","v":0}]

{"sheet":"Medarbejder 3","index":3,"n_rows":54,"n_cols":5,"rows_kept":54,"cut":false,"hidden":true,"merged":[[14,1,14,2],[6,1,6,2],[7,1,7,2],[8,1,8,3],[9,1,9,3],[13,1,13,2],[30,1,30,2],[15,1,15,2],[16,1,16,2],[17,1,17,2],[18,1,18,2],[23,1,23,2],[24,1,24,2],[25,1,25,2],[26,1,26,2],[27,1,27,2],[28,1,28,2],[29,1,29,2],[50,3,51,3],[31,1,31,2],[32,1,32,2],[33,1,33,2],[34,1,34,2],[35,1,35,2],[50,1,51,2]]}
[]
[null,null,"Budget/Regnskab for sporskiftepakken"]
[]
[null,null,"Oplysninger om medarbejderen"]
[]
[{"$f":"_xlfn.NUMBERVALUE(RIGHT(C6,1))","v":3},null,"Medarbejder 3"]
[null,"Medarbejderens lønkompensation fra sporskifte (kr./t.) Maks 260 kr.",null,{"$f":"IF(D8=\"\",0,MIN(D8,260))","v":0}]
[null,"Medarbejderens timesats (kr./t.)"]
[null,"Beskriv herunder hvad formålet med den planlagte sporskiftepakke er for medarbejderen:"]
[]
[]
[null,null,"Aktiviteter"]
[]
[null,"Afklaring, vejledning mv. \nSkriv navn på kursus",null,"Medarbejderens timeforbug (timer)","Evt. deltagerbetaling (kr.)"]
[]
[]
[]
[]
[]
[null,"Samlet antal timer (udregner selv)",null,{"$f":"SUM(D15:D19)","v":0}]
[null,"Samlet lønkompensation (udregner selv)",null,{"$f":"D20*D7","v":0}]
[null,"Samlet deltagerbeltaing (udregner selv)",null,{"$f":"SUM(E15:E19)","v":0}]
[]
[null,"Erhversrettet efteruddannelse\nSkriv navn på efteruddannelse",null,"Medarbejderens timeforbrug (timer)","Evt. deltagerbetaling (kr.)"]
[]
[]
[]
[]
[]
[]
[]
[]
[]
[]
[]
[null,"Kørsel/transport (angives som faktisk udgift)"]
[null,"Samlet antal timer (udregner selv)",null,{"$f":"SUM(D25:D36)","v":0}]
[null,"Samlet lønkompensation (udregner selv)",null,{"$f":"D37*D7","v":0}]
[null,"Samlet deltagerbetaling (udregner selv)",null,{"$f":"SUM(E25:E36)","v":0}]
[]
[null,"Praktik"]
[null,"Navn på virksomhed og p-nummer"]
[null,"Medarbejderens timeforbrug",null,null,{"$f":"IF(D43>C46*0.5,\"Praktik må maksimalt udgøre 50% af det samlede tidsforbrug.\",\" \")","v":" "}]
[null,"Samlet lønkompensation for praktikopholdet",null,{"$f":"IF(D43>C46*0.5,\"IKKE MULIGT\",D43*(IF(D8>261,260,D8)))","v":0}]
[]
[null,"Samlet tidsforbrug ",{"$f":"IF(D43+D37+D20>300,\"IKKE MULIGT\",D43+D37+D20)","v":0},{"$f":"IF(C46>300,\"Det maksimale tidsforbrug er 300 timer\",\" \")","v":" "}]
[]
[null,"Tidsforbrug til administration","Antal timer","Beløb"]
[null,"Der kan godtgøres op til 5 timer.",null,{"$f":"IF(C49>5,\"Der kan maksimalt godtgøres 5 timer pr. medarbejder.\",C49*260)","v":0}]
[]
[null,"Samlet tilsagnsramme i kr. (maksimal støtte til sporskiftepakken): ",null,{"$f":"IF(C46>300,0,MIN(D44+D39+D38+D22+D21+D49,120000))","v":0},{"$f":"IF(D51=120000,\"Det maksimale tilsagn pr. sporskiftepakke er nået, og det overstigende beløb er derfor selvbetaling.\",\"\")","v":""}]
[]
[]
[null,"Selvbetaling i kr. (udgifter udover den øvre tilsagnsramme)",null,{"$f":"IF(C46>300,0,IF(D51=120000,D39+D22+D38+D44+D21+D49-120000,0))","v":0}]

{"sheet":"Medarbejder 4","index":4,"n_rows":54,"n_cols":5,"rows_kept":54,"cut":false,"hidden":true,"merged":[[14,1,14,2],[6,1,6,2],[7,1,7,2],[8,1,8,3],[9,1,9,3],[13,1,13,2],[30,1,30,2],[15,1,15,2],[16,1,16,2],[17,1,17,2],[18,1,18,2],[23,1,23,2],[24,1,24,2],[25,1,25,2],[26,1,26,2],[27,1,27,2],[28,1,28,2],[29,1,29,2],[50,3,51,3],[31,1,31,2],[32,1,32,2],[33,1,33,2],[34,1,34,2],[35,1,35,2],[50,1,51,2]]}
[]
[null,null,"Budget/Regnskab for sporskiftepakken"]
[]
[null,null,"Oplysninger om medarbejderen"]
[]
[{"$f":"_xlfn.NUMBERVALUE(RIGHT(C6,1))","v":4},null,"Medarbejder 4"]
[null,"Medarbejderens lønkompensation fra sporskifte (kr./t.) Maks 260 kr.",null,{"$f":"IF(D8=\"\",0,MIN(D8,260))","v":0}]
[null,"Medarbejderens timesats (kr./t.)"]
[null,"Beskriv herunder hvad formålet med den planlagte sporskiftepakke er for medarbejderen:"]
[]
[]
[null,null,"Aktiviteter"]
[]
[null,"Afklaring, vejledning mv. \nSkriv navn på kursus",null,"Medarbejderens timeforbug (timer)","Evt. deltagerbetaling (kr.)"]
[]
[]
[]
[]
[]
[null,"Samlet antal timer (udregner selv)",null,{"$f":"SUM(D15:D19)","v":0}]
[null,"Samlet lønkompensation (udregner selv)",null,{"$f":"D20*D7","v":0}]
[null,"Samlet deltagerbeltaing (udregner selv)",null,{"$f":"SUM(E15:E19)","v":0}]
[]
[null,"Erhversrettet efteruddannelse\nSkriv navn på efteruddannelse",null,"Medarbejderens timeforbrug (timer)","Evt. deltagerbetaling (kr.)"]
[]
[]
[]
[]
[]
[]
[]
[]
[]
[]
[]
[null,"Kørsel/transport (angives som faktisk udgift)"]
[null,"Samlet antal timer (udregner selv)",null,{"$f":"SUM(D25:D36)","v":0}]
[null,"Samlet lønkompensation (udregner selv)",null,{"$f":"D37*D7","v":0}]
[null,"Samlet deltagerbetaling (udregner selv)",null,{"$f":"SUM(E25:E36)","v":0}]
[]
[null,"Praktik"]
[null,"Navn på virksomhed og p-nummer"]
[null,"Medarbejderens timeforbrug",null,null,{"$f":"IF(D43>C46*0.5,\"Praktik må maksimalt udgøre 50% af det samlede tidsforbrug.\",\" \")","v":" "}]
[null,"Samlet lønkompensation for praktikopholdet",null,{"$f":"IF(D43>C46*0.5,\"IKKE MULIGT\",D43*(IF(D8>261,260,D8)))","v":0}]
[]
[null,"Samlet tidsforbrug ",{"$f":"IF(D43+D37+D20>300,\"IKKE MULIGT\",D43+D37+D20)","v":0},{"$f":"IF(C46>300,\"Det maksimale tidsforbrug er 300 timer\",\" \")","v":" "}]
[]
[null,"Tidsforbrug til administration","Antal timer","Beløb"]
[null,"Der kan godtgøres op til 5 timer.",null,{"$f":"IF(C49>5,\"Der kan maksimalt godtgøres 5 timer pr. medarbejder.\",C49*260)","v":0}]
[]
[null,"Samlet tilsagnsramme i kr. (maksimal støtte til sporskiftepakken): ",null,{"$f":"IF(C46>300,0,MIN(D44+D39+D38+D22+D21+D49,120000))","v":0},{"$f":"IF(D51=120000,\"Det maksimale tilsagn pr. sporskiftepakke er nået, og det overstigende beløb er derfor selvbetaling.\",\"\")","v":""}]
[]
[]
[null,"Selvbetaling i kr. (udgifter udover den øvre tilsagnsramme)",null,{"$f":"IF(C46>300,0,IF(D51=120000,D39+D22+D38+D44+D21+D49-120000,0))","v":0}]

{"sheet":"Medarbejder 5","index":5,"n_rows":54,"n_cols":5,"rows_kept":54,"cut":false,"hidden":true,"merged":[[14,1,14,2],[6,1,6,2],[7,1,7,2],[8,1,8,3],[9,1,9,3],[13,1,13,2],[30,1,30,2],[15,1,15,2],[16,1,16,2],[17,1,17,2],[18,1,18,2],[23,1,23,2],[24,1,24,2],[25,1,25,2],[26,1,26,2],[27,1,27,2],[28,1,28,2],[29,1,29,2],[50,3,51,3],[31,1,31,2],[32,1,32,2],[33,1,33,2],[34,1,34,2],[35,1,35,2],[50,1,51,2]]}
[2222]
[null,null,"Budget/Regnskab for sporskiftepakken"]
[]
[null,null,"Oplysninger om medarbejderen"]
[]
[{"$f":"_xlfn.NUMBERVALUE(RIGHT(C6,1))","v":5},null,"Medarbejder 5"]
[null,"Medarbejderens lønkompensation fra sporskifte (kr./t.) Maks 260 kr.",null,{"$f":"IF(D8=\"\",0,MIN(D8,260))","v":0}]
[null,"Medarbejderens timesats (kr./t.)"]
[null,"Beskriv herunder hvad formålet med den planlagte sporskiftepakke er for medarbejderen:"]
[]
[]
[null,null,"Aktiviteter"]
[]
[null,"Afklaring, vejledning mv. \nSkriv navn på kursus",null,"Medarbejderens timeforbug (timer)","Evt. deltagerbetaling (kr.)"]
[]
[]
[]
[]
[]
[null,"Samlet antal timer (udregner selv)",null,{"$f":"SUM(D15:D19)","v":0}]
[null,"Samlet lønkompensation (udregner selv)",null,{"$f":"D20*D7","v":0}]
[null,"Samlet deltagerbeltaing (udregner selv)",null,{"$f":"SUM(E15:E19)","v":0}]
[]
[null,"Erhversrettet efteruddannelse\nSkriv navn på efteruddannelse",null,"Medarbejderens timeforbrug (timer)","Evt. deltagerbetaling (kr.)"]
[]
[]
[]
[]
[]
[]
[]
[]
[]
[]
[]
[null,"Kørsel/transport (angives som faktisk udgift)"]
[null,"Samlet antal timer (udregner selv)",null,{"$f":"SUM(D25:D36)","v":0}]
[null,"Samlet lønkompensation (udregner selv)",null,{"$f":"D37*D7","v":0}]
[null,"Samlet deltagerbetaling (udregner selv)",null,{"$f":"SUM(E25:E36)","v":0}]
[]
[null,"Praktik"]
[null,"Navn på virksomhed og p-nummer"]
[null,"Medarbejderens timeforbrug",null,null,{"$f":"IF(D43>C46*0.5,\"Praktik må maksimalt udgøre 50% af det samlede tidsforbrug.\",\" \")","v":" "}]
[null,"Samlet lønkompensation for praktikopholdet",null,{"$f":"IF(D43>C46*0.5,\"IKKE MULIGT\",D43*(IF(D8>261,260,D8)))","v":0}]
[]
[null,"Samlet tidsforbrug ",{"$f":"IF(D43+D37+D20>300,\"IKKE MULIGT\",D43+D37+D20)","v":0},{"$f":"IF(C46>300,\"Det maksimale tidsforbrug er 300 timer\",\" \")","v":" "}]
[]
[null,"Tidsforbrug til administration","Antal timer","Beløb"]
[null,"Der kan godtgøres op til 5 timer.",null,{"$f":"IF(C49>5,\"Der kan maksimalt godtgøres 5 timer pr. medarbejder.\",C49*260)","v":0}]
[]
[null,"Samlet tilsagnsramme i kr. (maksimal støtte til sporskiftepakken): ",null,{"$f":"IF(C46>300,0,MIN(D44+D39+D38+D22+D21+D49,120000))","v":0},{"$f":"IF(D51=120000,\"Det maksimale tilsagn pr. sporskiftepakke er nået, og det overstigende beløb er derfor selvbetaling.\",\"\")","v":""}]
[]
[]
[null,"Selvbetaling i kr. (udgifter udover den øvre tilsagnsramme)",null,{"$f":"IF(C46>300,0,IF(D51=120000,D39+D22+D38+D44+D21+D49-120000,0))","v":0}]

{"sheet":"Medarbejder 6","index":6,"n_rows":54,"n_cols":5,"rows_kept":54,"cut":false,"hidden":true,"merged":[[14,1,14,2],[6,1,6,2],[7,1,7,2],[8,1,8,3],[9,1,9,3],[13,1,13,2],[30,1,30,2],[15,1,15,2],[16,1,16,2],[17,1,17,2],[18,1,18,2],[23,1,23,2],[24,1,24,2],[25,1,25,2],[26,1,26,2],[27,1,27,2],[28,1,28,2],[29,1,29,2],[50,3,51,3],[31,1,31,2],[32,1,32,2],[33,1,33,2],[34,1,34,2],[35,1,35,2],[50,1,51,2]]}
[]
[null,null,"Budget/Regnskab for sporskiftepakken"]
[]
[null,null,"Oplysninger om medarbejderen"]
[]
[{"$f":"_xlfn.NUMBERVALUE(RIGHT(C6,1))","v":6},null,"Medarbejder 6"]
[null,"Medarbejderens lønkompensation fra sporskifte (kr./t.) Maks 260 kr.",null,{"$f":"IF(D8=\"\",0,MIN(D8,260))","v":0}]
[null,"Medarbejderens timesats (kr./t.)"]
[null,"Beskriv herunder hvad formålet med den planlagte sporskiftepakke er for medarbejderen:"]
[]
[]
[null,null,"Aktiviteter"]
[]
[null,"Afklaring, vejledning mv. \nSkriv navn på kursus",null,"Medarbejderens timeforbug (timer)","Evt. deltagerbetaling (kr.)"]
[]
[]
[]
[]
[]
[null,"Samlet antal timer (udregner selv)",null,{"$f":"SUM(D15:D19)","v":0}]
[null,"Samlet lønkompensation (udregner selv)",null,{"$f":"D20*D7","v":0}]
[null,"Samlet deltagerbeltaing (udregner selv)",null,{"$f":"SUM(E15:E19)","v":0}]
[]
[null,"Erhversrettet efteruddannelse\nSkriv navn på efteruddannelse",null,"Medarbejderens timeforbrug (timer)","Evt. deltagerbetaling (kr.)"]
[]
[]
[]
[]
[]
[]
[]
[]
[]
[]
[]
[null,"Kørsel/transport (angives som faktisk udgift)"]
[null,"Samlet antal timer (udregner selv)",null,{"$f":"SUM(D25:D36)","v":0}]
[null,"Samlet lønkompensation (udregner selv)",null,{"$f":"D37*D7","v":0}]
[null,"Samlet deltagerbetaling (udregner selv)",null,{"$f":"SUM(E25:E36)","v":0}]
[]
[null,"Praktik"]
[null,"Navn på virksomhed og p-nummer"]
[null,"Medarbejderens timeforbrug",null,null,{"$f":"IF(D43>C46*0.5,\"Praktik må maksimalt udgøre 50% af det samlede tidsforbrug.\",\" \")","v":" "}]
[null,"Samlet lønkompensation for praktikopholdet",null,{"$f":"IF(D43>C46*0.5,\"IKKE MULIGT\",D43*(IF(D8>261,260,D8)))","v":0}]
[]
[null,"Samlet tidsforbrug ",{"$f":"IF(D43+D37+D20>300,\"IKKE MULIGT\",D43+D37+D20)","v":0},{"$f":"IF(C46>300,\"Det maksimale tidsforbrug er 300 timer\",\" \")","v":" "}]
[]
[null,"Tidsforbrug til administration","Antal timer","Beløb"]
[null,"Der kan godtgøres op til 5 timer.",null,{"$f":"IF(C49>5,\"Der kan maksimalt godtgøres 5 timer pr. medarbejder.\",C49*260)","v":0}]
[]
[null,"Samlet tilsagnsramme i kr. (maksimal støtte til sporskiftepakken): ",null,{"$f":"IF(C46>300,0,MIN(D44+D39+D38+D22+D21+D49,120000))","v":0},{"$f":"IF(D51=120000,\"Det maksimale tilsagn pr. sporskiftepakke er nået, og det overstigende beløb er derfor selvbetaling.\",\"\")","v":""}]
[]
[]
[null,"Selvbetaling i kr. (udgifter udover den øvre tilsagnsramme)",null,{"$f":"IF(C46>300,0,IF(D51=120000,D39+D22+D38+D44+D21+D49-120000,0))","v":0}]

{"sheet":"Medarbejder 7","index":7,"n_rows":54,"n_cols":5,"rows_kept":54,"cut":false,"hidden":true,"merged":[[14,1,14,2],[6,1,6,2],[7,1,7,2],[8,1,8,3],[9,1,9,3],[13,1,13,2],[30,1,30,2],[15,1,15,2],[16,1,16,2],[17,1,17,2],[18,1,18,2],[23,1,23,2],[24,1,24,2],[25,1,25,2],[26,1,26,2],[27,1,27,2],[28,1,28,2],[29,1,29,2],[50,3,51,3],[31,1,31,2],[32,1,32,2],[33,1,33,2],[34,1,34,2],[35,1,35,2],[50,1,51,2]]}
[]
[null,null,"Budget/Regnskab for sporskiftepakken"]
[]
[null,null,"Oplysninger om medarbejderen"]
[]
[{"$f":"_xlfn.NUMBERVALUE(RIGHT(C6,1))","v":7},null,"Medarbejder 7"]
[null,"Medarbejderens lønkompensation fra sporskifte (kr./t.) Maks 260 kr.",null,{"$f":"IF(D8=\"\",0,MIN(D8,260))","v":0}]
[null,"Medarbejderens timesats (kr./t.)"]
[null,"Beskriv herunder hvad formålet med den planlagte sporskiftepakke er for medarbejderen:"]
[]
[]
[null,null,"Aktiviteter"]
[]
[null,"Afklaring, vejledning mv. \nSkriv navn på kursus",null,"Medarbejderens timeforbug (timer)","Evt. deltagerbetaling (kr.)"]
[]
[]
[]
[]
[]
[null,"Samlet antal timer (udregner selv)",null,{"$f":"SUM(D15:D19)","v":0}]
[null,"Samlet lønkompensation (udregner selv)",null,{"$f":"D20*D7","v":0}]
[null,"Samlet deltagerbeltaing (udregner selv)",null,{"$f":"SUM(E15:E19)","v":0}]
[]
[null,"Erhversrettet efteruddannelse\nSkriv navn på efteruddannelse",null,"Medarbejderens timeforbrug (timer)","Evt. deltagerbetaling (kr.)"]
[]
[]
[]
[]
[]
[]
[]
[]
[]
[]
[]
[null,"Kørsel/transport (angives som faktisk udgift)"]
[null,"Samlet antal timer (udregner selv)",null,{"$f":"SUM(D25:D36)","v":0}]
[null,"Samlet lønkompensation (udregner selv)",null,{"$f":"D37*D7","v":0}]
[null,"Samlet deltagerbetaling (udregner selv)",null,{"$f":"SUM(E25:E36)","v":0}]
[]
[null,"Praktik"]
[null,"Navn på virksomhed og p-nummer"]
[null,"Medarbejderens timeforbrug",null,null,{"$f":"IF(D43>C46*0.5,\"Praktik må maksimalt udgøre 50% af det samlede tidsforbrug.\",\" \")","v":" "}]
[null,"Samlet lønkompensation for praktikopholdet",null,{"$f":"IF(D43>C46*0.5,\"IKKE MULIGT\",D43*(IF(D8>261,260,D8)))","v":0}]
[]
[null,"Samlet tidsforbrug ",{"$f":"IF(D43+D37+D20>300,\"IKKE MULIGT\",D43+D37+D20)","v":0},{"$f":"IF(C46>300,\"Det maksimale tidsforbrug er 300 timer\",\" \")","v":" "}]
[]
[null,"Tidsforbrug til administration","Antal timer","Beløb"]
[null,"Der kan godtgøres op til 5 timer.",null,{"$f":"IF(C49>5,\"Der kan maksimalt godtgøres 5 timer pr. medarbejder.\",C49*260)","v":0}]
[]
[null,"Samlet tilsagnsramme i kr. (maksimal støtte til sporskiftepakken): ",null,{"$f":"IF(C46>300,0,MIN(D44+D39+D38+D22+D21+D49,120000))","v":0},{"$f":"IF(D51=120000,\"Det maksimale tilsagn pr. sporskiftepakke er nået, og det overstigende beløb er derfor selvbetaling.\",\"\")","v":""}]
[]
[]
[null,"Selvbetaling i kr. (udgifter udover den øvre tilsagnsramme)",null,{"$f":"IF(C46>300,0,IF(D51=120000,D39+D22+D38+D44+D21+D49-120000,0))","v":0}]

{"sheet":"Medarbejder 8","index":8,"n_rows":54,"n_cols":5,"rows_kept":54,"cut":false,"hidden":true,"merged":[[14,1,14,2],[6,1,6,2],[7,1,7,2],[8,1,8,3],[9,1,9,3],[13,1,13,2],[30,1,30,2],[15,1,15,2],[16,1,16,2],[17,1,17,2],[18,1,18,2],[23,1,23,2],[24,1,24,2],[25,1,25,2],[26,1,26,2],[27,1,27,2],[28,1,28,2],[29,1,29,2],[50,3,51,3],[31,1,31,2],[32,1,32,2],[33,1,33,2],[34,1,34,2],[35,1,35,2],[50,1,51,2]]}
[]
[null,null,"Budget/Regnskab for sporskiftepakken"]
[]
[null,null,"Oplysninger om medarbejderen"]
[]
[{"$f":"_xlfn.NUMBERVALUE(RIGHT(C6,1))","v":8},null,"Medarbejder 8"]
[null,"Medarbejderens lønkompensation fra sporskifte (kr./t.) Maks 260 kr.",null,{"$f":"IF(D8=\"\",0,MIN(D8,260))","v":0}]
[null,"Medarbejderens timesats (kr./t.)"]
[null,"Beskriv herunder hvad formålet med den planlagte sporskiftepakke er for medarbejderen:"]
[]
[]
[null,null,"Aktiviteter"]
[]
[null,"Afklaring, vejledning mv. \nSkriv navn på kursus",null,"Medarbejderens timeforbug (timer)","Evt. deltagerbetaling (kr.)"]
[]
[]
[]
[]
[]
[null,"Samlet antal timer (udregner selv)",null,{"$f":"SUM(D15:D19)","v":0}]
[null,"Samlet lønkompensation (udregner selv)",null,{"$f":"D20*D7","v":0}]
[null,"Samlet deltagerbeltaing (udregner selv)",null,{"$f":"SUM(E15:E19)","v":0}]
[]
[null,"Erhversrettet efteruddannelse\nSkriv navn på efteruddannelse",null,"Medarbejderens timeforbrug (timer)","Evt. deltagerbetaling (kr.)"]
[]
[]
[]
[]
[]
[]
[]
[]
[]
[]
[]
[null,"Kørsel/transport (angives som faktisk udgift)"]
[null,"Samlet antal timer (udregner selv)",null,{"$f":"SUM(D25:D36)","v":0}]
[null,"Samlet lønkompensation (udregner selv)",null,{"$f":"D37*D7","v":0}]
[null,"Samlet deltagerbetaling (udregner selv)",null,{"$f":"SUM(E25:E36)","v":0}]
[]
[null,"Praktik"]
[null,"Navn på virksomhed og p-nummer"]
[null,"Medarbejderens timeforbrug",null,null,{"$f":"IF(D43>C46*0.5,\"Praktik må maksimalt udgøre 50% af det samlede tidsforbrug.\",\" \")","v":" "}]
[null,"Samlet lønkompensation for praktikopholdet",null,{"$f":"IF(D43>C46*0.5,\"IKKE MULIGT\",D43*(IF(D8>261,260,D8)))","v":0}]
[]
[null,"Samlet tidsforbrug ",{"$f":"IF(D43+D37+D20>300,\"IKKE MULIGT\",D43+D37+D20)","v":0},{"$f":"IF(C46>300,\"Det maksimale tidsforbrug er 300 timer\",\" \")","v":" "}]
[]
[null,"Tidsforbrug til administration","Antal timer","Beløb"]
[null,"Der kan godtgøres op til 5 timer.",null,{"$f":"IF(C49>5,\"Der kan maksimalt godtgøres 5 timer pr. medarbejder.\",C49*260)","v":0}]
[]
[null,"Samlet tilsagnsramme i kr. (maksimal støtte til sporskiftepakken): ",null,{"$f":"IF(C46>300,0,MIN(D44+D39+D38+D22+D21+D49,120000))","v":0},{"$f":"IF(D51=120000,\"Det maksimale tilsagn pr. sporskiftepakke er nået, og det overstigende beløb er derfor selvbetaling.\",\"\")","v":""}]
[]
[]
[null,"Selvbetaling i kr. (udgifter udover den øvre tilsagnsramme)",null,{"$f":"IF(C46>300,0,IF(D51=120000,D39+D22+D38+D44+D21+D49-120000,0))","v":0}]

{"sheet":"Medarbejder 9","index":9,"n_rows":54,"n_cols":5,"rows_kept":54,"cut":false,"hidden":true,"merged":[[14,1,14,2],[6,1,6,2],[7,1,7,2],[8,1,8,3],[9,1,9,3],[13,1,13,2],[30,1,30,2],[15,1,15,2],[16,1,16,2],[17,1,17,2],[18,1,18,2],[23,1,23,2],[24,1,24,2],[25,1,25,2],[26,1,26,2],[27,1,27,2],[28,1,28,2],[29,1,29,2],[50,3,51,3],[31,1,31,2],[32,1,32,2],[33,1,33,2],[34,1,34,2],[35,1,35,2],[50,1,51,2]]}
[]
[null,null,"Budget/Regnskab for sporskiftepakken"]
[]
[null,null,"Oplysninger om medarbejderen"]
[]
[{"$f":"_xlfn.NUMBERVALUE(RIGHT(C6,1))","v":9},null,"Medarbejder 9"]
[null,"Medarbejderens lønkompensation fra sporskifte (kr./t.) Maks 260 kr.",null,{"$f":"IF(D8=\"\",0,MIN(D8,260))","v":0}]
[null,"Medarbejderens timesats (kr./t.)"]
[null,"Beskriv herunder hvad formålet med den planlagte sporskiftepakke er for medarbejderen:"]
[]
[]
[null,null,"Aktiviteter"]
[]
[null,"Afklaring, vejledning mv. \nSkriv navn på kursus",null,"Medarbejderens timeforbug (timer)","Evt. deltagerbetaling (kr.)"]
[]
[]
[]
[]
[]
[null,"Samlet antal timer (udregner selv)",null,{"$f":"SUM(D15:D19)","v":0}]
[null,"Samlet lønkompensation (udregner selv)",null,{"$f":"D20*D7","v":0}]
[null,"Samlet deltagerbeltaing (udregner selv)",null,{"$f":"SUM(E15:E19)","v":0}]
[]
[null,"Erhversrettet efteruddannelse\nSkriv navn på efteruddannelse",null,"Medarbejderens timeforbrug (timer)","Evt. deltagerbetaling (kr.)"]
[]
[]
[]
[]
[]
[]
[]
[]
[]
[]
[]
[null,"Kørsel/transport (angives som faktisk udgift)"]
[null,"Samlet antal timer (udregner selv)",null,{"$f":"SUM(D25:D36)","v":0}]
[null,"Samlet lønkompensation (udregner selv)",null,{"$f":"D37*D7","v":0}]
[null,"Samlet deltagerbetaling (udregner selv)",null,{"$f":"SUM(E25:E36)","v":0}]
[]
[null,"Praktik"]
[null,"Navn på virksomhed og p-nummer"]
[null,"Medarbejderens timeforbrug",null,null,{"$f":"IF(D43>C46*0.5,\"Praktik må maksimalt udgøre 50% af det samlede tidsforbrug.\",\" \")","v":" "}]
[null,"Samlet lønkompensation for praktikopholdet",null,{"$f":"IF(D43>C46*0.5,\"IKKE MULIGT\",D43*(IF(D8>261,260,D8)))","v":0}]
[]
[null,"Samlet tidsforbrug ",{"$f":"IF(D43+D37+D20>300,\"IKKE MULIGT\",D43+D37+D20)","v":0},{"$f":"IF(C46>300,\"Det maksimale tidsforbrug er 300 timer\",\" \")","v":" "}]
[]
[null,"Tidsforbrug til administration","Antal timer","Beløb"]
[null,"Der kan godtgøres op til 5 timer.",null,{"$f":"IF(C49>5,\"Der kan maksimalt godtgøres 5 timer pr. medarbejder.\",C49*260)","v":0}]
[]
[null,"Samlet tilsagnsramme i kr. (maksimal støtte til sporskiftepakken): ",null,{"$f":"IF(C46>300,0,MIN(D44+D39+D38+D22+D21+D49,120000))","v":0},{"$f":"IF(D51=120000,\"Det maksimale tilsagn pr. sporskiftepakke er nået, og det overstigende beløb er derfor selvbetaling.\",\"\")","v":""}]
[]
[]
[null,"Selvbetaling i kr. (udgifter udover den øvre tilsagnsramme)",null,{"$f":"IF(C46>300,0,IF(D51=120000,D39+D22+D38+D44+D21+D49-120000,0))","v":0}]

{"sheet":"Medarbejder 10","index":10,"n_rows":54,"n_cols":5,"rows_kept":54,"cut":false,"hidden":true,"merged":[[14,1,14,2],[6,1,6,2],[7,1,7,2],[8,1,8,3],[9,1,9,3],[13,1,13,2],[30,1,30,2],[15,1,15,2],[16,1,16,2],[17,1,17,2],[18,1,18,2],[23,1,23,2],[24,1,24,2],[25,1,25,2],[26,1,26,2],[27,1,27,2],[28,1,28,2],[29,1,29,2],[50,3,51,3],[31,1,31,2],[32,1,32,2],[33,1,33,2],[34,1,34,2],[35,1,35,2],[50,1,51,2]]}
[2222]
[null,null,"Budget/Regnskab for sporskiftepakken"]
[]
[null,null,"Oplysninger om medarbejderen"]
[]
[{"$f":"_xlfn.NUMBERVALUE(RIGHT(C6,2))","v":10},null,"Medarbejder 10"]
[null,"Medarbejderens lønkompensation fra sporskifte (kr./t.) Maks 260 kr.",null,{"$f":"IF(D8=\"\",0,MIN(D8,260))","v":0}]
[null,"Medarbejderens timesats (kr./t.)"]
[null,"Beskriv herunder hvad formålet med den planlagte sporskiftepakke er for medarbejderen:"]
[]
[]
[null,null,"Aktiviteter"]
[]
[null,"Afklaring, vejledning mv. \nSkriv navn på kursus",null,"Medarbejderens timeforbug (timer)","Evt. deltagerbetaling (kr.)"]
[]
[]
[]
[]
[]
[null,"Samlet antal timer (udregner selv)",null,{"$f":"SUM(D15:D19)","v":0}]
[null,"Samlet lønkompensation (udregner selv)",null,{"$f":"D20*D7","v":0}]
[null,"Samlet deltagerbeltaing (udregner selv)",null,{"$f":"SUM(E15:E19)","v":0}]
[]
[null,"Erhversrettet efteruddannelse\nSkriv navn på efteruddannelse",null,"Medarbejderens timeforbrug (timer)","Evt. deltagerbetaling (kr.)"]
[]
[]
[]
[]
[]
[]
[]
[]
[]
[]
[]
[null,"Kørsel/transport (angives som faktisk udgift)"]
[null,"Samlet antal timer (udregner selv)",null,{"$f":"SUM(D25:D36)","v":0}]
[null,"Samlet lønkompensation (udregner selv)",null,{"$f":"D37*D7","v":0}]
[null,"Samlet deltagerbetaling (udregner selv)",null,{"$f":"SUM(E25:E36)","v":0}]
[]
[null,"Praktik"]
[null,"Navn på virksomhed og p-nummer"]
[null,"Medarbejderens timeforbrug",null,null,{"$f":"IF(D43>C46*0.5,\"Praktik må maksimalt udgøre 50% af det samlede tidsforbrug.\",\" \")","v":" "}]
[null,"Samlet lønkompensation for praktikopholdet",null,{"$f":"IF(D43>C46*0.5,\"IKKE MULIGT\",D43*(IF(D8>261,260,D8)))","v":0}]
[]
[null,"Samlet tidsforbrug ",{"$f":"IF(D43+D37+D20>300,\"IKKE MULIGT\",D43+D37+D20)","v":0},{"$f":"IF(C46>300,\"Det maksimale tidsforbrug er 300 timer\",\" \")","v":" "}]
[]
[null,"Tidsforbrug til administration","Antal timer","Beløb"]
[null,"Der kan godtgøres op til 5 timer.",null,{"$f":"IF(C49>5,\"Der kan maksimalt godtgøres 5 timer pr. medarbejder.\",C49*260)","v":0}]
[]
[null,"Samlet tilsagnsramme i kr. (maksimal støtte til sporskiftepakken): ",null,{"$f":"IF(C46>300,0,MIN(D44+D39+D38+D22+D21+D49,120000))","v":0},{"$f":"IF(D51=120000,\"Det maksimale tilsagn pr. sporskiftepakke er nået, og det overstigende beløb er derfor selvbetaling.\",\"\")","v":""}]
[]
[]
[null,"Selvbetaling i kr. (udgifter udover den øvre tilsagnsramme)",null,{"$f":"IF(C46>300,0,IF(D51=120000,D39+D22+D38+D44+D21+D49-120000,0))","v":0}]

{"sheet":"Medarbejder 11","index":11,"n_rows":54,"n_cols":5,"rows_kept":54,"cut":false,"hidden":true,"merged":[[14,1,14,2],[6,1,6,2],[7,1,7,2],[8,1,8,3],[9,1,9,3],[13,1,13,2],[30,1,30,2],[15,1,15,2],[16,1,16,2],[17,1,17,2],[18,1,18,2],[23,1,23,2],[24,1,24,2],[25,1,25,2],[26,1,26,2],[27,1,27,2],[28,1,28,2],[29,1,29,2],[50,3,51,3],[31,1,31,2],[32,1,32,2],[33,1,33,2],[34,1,34,2],[35,1,35,2],[50,1,51,2]]}
[]
[null,null,"Budget/Regnskab for sporskiftepakken"]
[]
[null,null,"Oplysninger om medarbejderen"]
[]
[{"$f":"_xlfn.NUMBERVALUE(RIGHT(C6,2))","v":11},null,"Medarbejder 11"]
[null,"Medarbejderens lønkompensation fra sporskifte (kr./t.) Maks 260 kr.",null,{"$f":"IF(D8=\"\",0,MIN(D8,260))","v":0}]
[null,"Medarbejderens timesats (kr./t.)"]
[null,"Beskriv herunder hvad formålet med den planlagte sporskiftepakke er for medarbejderen:"]
[]
[]
[null,null,"Aktiviteter"]
[]
[null,"Afklaring, vejledning mv. \nSkriv navn på kursus",null,"Medarbejderens timeforbug (timer)","Evt. deltagerbetaling (kr.)"]
[]
[]
[]
[]
[]
[null,"Samlet antal timer (udregner selv)",null,{"$f":"SUM(D15:D19)","v":0}]
[null,"Samlet lønkompensation (udregner selv)",null,{"$f":"D20*D7","v":0}]
[null,"Samlet deltagerbeltaing (udregner selv)",null,{"$f":"SUM(E15:E19)","v":0}]
[]
[null,"Erhversrettet efteruddannelse\nSkriv navn på efteruddannelse",null,"Medarbejderens timeforbrug (timer)","Evt. deltagerbetaling (kr.)"]
[]
[]
[]
[]
[]
[]
[]
[]
[]
[]
[]
[null,"Kørsel/transport (angives som faktisk udgift)"]
[null,"Samlet antal timer (udregner selv)",null,{"$f":"SUM(D25:D36)","v":0}]
[null,"Samlet lønkompensation (udregner selv)",null,{"$f":"D37*D7","v":0}]
[null,"Samlet deltagerbetaling (udregner selv)",null,{"$f":"SUM(E25:E36)","v":0}]
[]
[null,"Praktik"]
[null,"Navn på virksomhed og p-nummer"]
[null,"Medarbejderens timeforbrug",null,null,{"$f":"IF(D43>C46*0.5,\"Praktik må maksimalt udgøre 50% af det samlede tidsforbrug.\",\" \")","v":" "}]
[null,"Samlet lønkompensation for praktikopholdet",null,{"$f":"IF(D43>C46*0.5,\"IKKE MULIGT\",D43*(IF(D8>261,260,D8)))","v":0}]
[]
[null,"Samlet tidsforbrug ",{"$f":"IF(D43+D37+D20>300,\"IKKE MULIGT\",D43+D37+D20)","v":0},{"$f":"IF(C46>300,\"Det maksimale tidsforbrug er 300 timer\",\" \")","v":" "}]
[]
[null,"Tidsforbrug til administration","Antal timer","Beløb"]
[null,"Der kan godtgøres op til 5 timer.",null,{"$f":"IF(C49>5,\"Der kan maksimalt godtgøres 5 timer pr. medarbejder.\",C49*260)","v":0}]
[]
[null,"Samlet tilsagnsramme i kr. (maksimal støtte til sporskiftepakken): ",null,{"$f":"IF(C46>300,0,MIN(D44+D39+D38+D22+D21+D49,120000))","v":0},{"$f":"IF(D51=120000,\"Det maksimale tilsagn pr. sporskiftepakke er nået, og det overstigende beløb er derfor selvbetaling.\",\"\")","v":""}]
[]
[]
[null,"Selvbetaling i kr. (udgifter udover den øvre tilsagnsramme)",null,{"$f":"IF(C46>300,0,IF(D51=120000,D39+D22+D38+D44+D21+D49-120000,0))","v":0}]

{"sheet":"Medarbejder 12","index":12,"n_rows":54,"n_cols":5,"rows_kept":54,"cut":false,"hidden":true,"merged":[[14,1,14,2],[6,1,6,2],[7,1,7,2],[8,1,8,3],[9,1,9,3],[13,1,13,2],[30,1,30,2],[15,1,15,2],[16,1,16,2],[17,1,17,2],[18,1,18,2],[23,1,23,2],[24,1,24,2],[25,1,25,2],[26,1,26,2],[27,1,27,2],[28,1,28,2],[29,1,29,2],[50,3,51,3],[31,1,31,2],[32,1,32,2],[33,1,33,2],[34,1,34,2],[35,1,35,2],[50,1,51,2]]}
[]
[null,null,"Budget/Regnskab for sporskiftepakken"]
[]
[null,null,"Oplysninger om medarbejderen"]
[]
[{"$f":"_xlfn.NUMBERVALUE(RIGHT(C6,2))","v":12},null,"Medarbejder 12"]
[null,"Medarbejderens lønkompensation fra sporskifte (kr./t.) Maks 260 kr.",null,{"$f":"IF(D8=\"\",0,MIN(D8,260))","v":0}]
[null,"Medarbejderens timesats (kr./t.)"]
[null,"Beskriv herunder hvad formålet med den planlagte sporskiftepakke er for medarbejderen:"]
[]
[]
[null,null,"Aktiviteter"]
[]
[null,"Afklaring, vejledning mv. \nSkriv navn på kursus",null,"Medarbejderens timeforbug (timer)","Evt. deltagerbetaling (kr.)"]
[]
[]
[]
[]
[]
[null,"Samlet antal timer (udregner selv)",null,{"$f":"SUM(D15:D19)","v":0}]
[null,"Samlet lønkompensation (udregner selv)",null,{"$f":"D20*D7","v":0}]
[null,"Samlet deltagerbeltaing (udregner selv)",null,{"$f":"SUM(E15:E19)","v":0}]
[]
[null,"Erhversrettet efteruddannelse\nSkriv navn på efteruddannelse",null,"Medarbejderens timeforbrug (timer)","Evt. deltagerbetaling (kr.)"]
[]
[]
[]
[]
[]
[]
[]
[]
[]
[]
[]
[null,"Kørsel/transport (angives som faktisk udgift)"]
[null,"Samlet antal timer (udregner selv)",null,{"$f":"SUM(D25:D36)","v":0}]
[null,"Samlet lønkompensation (udregner selv)",null,{"$f":"D37*D7","v":0}]
[null,"Samlet deltagerbetaling (udregner selv)",null,{"$f":"SUM(E25:E36)","v":0}]
[]
[null,"Praktik"]
[null,"Navn på virksomhed og p-nummer"]
[null,"Medarbejderens timeforbrug",null,null,{"$f":"IF(D43>C46*0.5,\"Praktik må maksimalt udgøre 50% af det samlede tidsforbrug.\",\" \")","v":" "}]
[null,"Samlet lønkompensation for praktikopholdet",null,{"$f":"IF(D43>C46*0.5,\"IKKE MULIGT\",D43*(IF(D8>261,260,D8)))","v":0}]
[]
[null,"Samlet tidsforbrug ",{"$f":"IF(D43+D37+D20>300,\"IKKE MULIGT\",D43+D37+D20)","v":0},{"$f":"IF(C46>300,\"Det maksimale tidsforbrug er 300 timer\",\" \")","v":" "}]
[]
[null,"Tidsforbrug til administration","Antal timer","Beløb"]
[null,"Der kan godtgøres op til 5 timer.",null,{"$f":"IF(C49>5,\"Der kan maksimalt godtgøres 5 timer pr. medarbejder.\",C49*260)","v":0}]
[]
[null,"Samlet tilsagnsramme i kr. (maksimal støtte til sporskiftepakken): ",null,{"$f":"IF(C46>300,0,MIN(D44+D39+D38+D22+D21+D49,120000))","v":0},{"$f":"IF(D51=120000,\"Det maksimale tilsagn pr. sporskiftepakke er nået, og det overstigende beløb er derfor selvbetaling.\",\"\")","v":""}]
[]
[]
[null,"Selvbetaling i kr. (udgifter udover den øvre tilsagnsramme)",null,{"$f":"IF(C46>300,0,IF(D51=120000,D39+D22+D38+D44+D21+D49-120000,0))","v":0}]

{"sheet":"Medarbejder 13","index":13,"n_rows":54,"n_cols":5,"rows_kept":54,"cut":false,"hidden":true,"merged":[[14,1,14,2],[6,1,6,2],[7,1,7,2],[8,1,8,3],[9,1,9,3],[13,1,13,2],[30,1,30,2],[15,1,15,2],[16,1,16,2],[17,1,17,2],[18,1,18,2],[23,1,23,2],[24,1,24,2],[25,1,25,2],[26,1,26,2],[27,1,27,2],[28,1,28,2],[29,1,29,2],[50,3,51,3],[31,1,31,2],[32,1,32,2],[33,1,33,2],[34,1,34,2],[35,1,35,2],[50,1,51,2]]}
[]
[null,null,"Budget/Regnskab for sporskiftepakken"]
[]
[null,null,"Oplysninger om medarbejderen"]
[]
[{"$f":"_xlfn.NUMBERVALUE(RIGHT(C6,2))","v":13},null,"Medarbejder 13"]
[null,"Medarbejderens lønkompensation fra sporskifte (kr./t.) Maks 260 kr.",null,{"$f":"IF(D8=\"\",0,MIN(D8,260))","v":0}]
[null,"Medarbejderens timesats (kr./t.)"]
[null,"Beskriv herunder hvad formålet med den planlagte sporskiftepakke er for medarbejderen:"]
[]
[]
[null,null,"Aktiviteter"]
[]
[null,"Afklaring, vejledning mv. \nSkriv navn på kursus",null,"Medarbejderens timeforbug (timer)","Evt. deltagerbetaling (kr.)"]
[]
[]
[]
[]
[]
[null,"Samlet antal timer (udregner selv)",null,{"$f":"SUM(D15:D19)","v":0}]
[null,"Samlet lønkompensation (udregner selv)",null,{"$f":"D20*D7","v":0}]
[null,"Samlet deltagerbeltaing (udregner selv)",null,{"$f":"SUM(E15:E19)","v":0}]
[]
[null,"Erhversrettet efteruddannelse\nSkriv navn på efteruddannelse",null,"Medarbejderens timeforbrug (timer)","Evt. deltagerbetaling (kr.)"]
[]
[]
[]
[]
[]
[]
[]
[]
[]
[]
[]
[null,"Kørsel/transport (angives som faktisk udgift)"]
[null,"Samlet antal timer (udregner selv)",null,{"$f":"SUM(D25:D36)","v":0}]
[null,"Samlet lønkompensation (udregner selv)",null,{"$f":"D37*D7","v":0}]
[null,"Samlet deltagerbetaling (udregner selv)",null,{"$f":"SUM(E25:E36)","v":0}]
[]
[null,"Praktik"]
[null,"Navn på virksomhed og p-nummer"]
[null,"Medarbejderens timeforbrug",null,null,{"$f":"IF(D43>C46*0.5,\"Praktik må maksimalt udgøre 50% af det samlede tidsforbrug.\",\" \")","v":" "}]
[null,"Samlet lønkompensation for praktikopholdet",null,{"$f":"IF(D43>C46*0.5,\"IKKE MULIGT\",D43*(IF(D8>261,260,D8)))","v":0}]
[]
[null,"Samlet tidsforbrug ",{"$f":"IF(D43+D37+D20>300,\"IKKE MULIGT\",D43+D37+D20)","v":0},{"$f":"IF(C46>300,\"Det maksimale tidsforbrug er 300 timer\",\" \")","v":" "}]
[]
[null,"Tidsforbrug til administration","Antal timer","Beløb"]
[null,"Der kan godtgøres op til 5 timer.",null,{"$f":"IF(C49>5,\"Der kan maksimalt godtgøres 5 timer pr. medarbejder.\",C49*260)","v":0}]
[]
[null,"Samlet tilsagnsramme i kr. (maksimal støtte til sporskiftepakken): ",null,{"$f":"IF(C46>300,0,MIN(D44+D39+D38+D22+D21+D49,120000))","v":0},{"$f":"IF(D51=120000,\"Det maksimale tilsagn pr. sporskiftepakke er nået, og det overstigende beløb er derfor selvbetaling.\",\"\")","v":""}]
[]
[]
[null,"Selvbetaling i kr. (udgifter udover den øvre tilsagnsramme)",null,{"$f":"IF(C46>300,0,IF(D51=120000,D39+D22+D38+D44+D21+D49-120000,0))","v":0}]

{"sheet":"Medarbejder 14","index":14,"n_rows":54,"n_cols":5,"rows_kept":54,"cut":false,"hidden":true,"merged":[[14,1,14,2],[6,1,6,2],[7,1,7,2],[8,1,8,3],[9,1,9,3],[13,1,13,2],[30,1,30,2],[15,1,15,2],[16,1,16,2],[17,1,17,2],[18,1,18,2],[23,1,23,2],[24,1,24,2],[25,1,25,2],[26,1,26,2],[27,1,27,2],[28,1,28,2],[29,1,29,2],[50,3,51,3],[31,1,31,2],[32,1,32,2],[33,1,33,2],[34,1,34,2],[35,1,35,2],[50,1,51,2]]}
[]
[null,null,"Budget/Regnskab for sporskiftepakken"]
[]
[null,null,"Oplysninger om medarbejderen"]
[]
[{"$f":"_xlfn.NUMBERVALUE(RIGHT(C6,2))","v":14},null,"Medarbejder 14"]
[null,"Medarbejderens lønkompensation fra sporskifte (kr./t.) Maks 260 kr.",null,{"$f":"IF(D8=\"\",0,MIN(D8,260))","v":0}]
[null,"Medarbejderens timesats (kr./t.)"]
[null,"Beskriv herunder hvad formålet med den planlagte sporskiftepakke er for medarbejderen:"]
[]
[]
[null,null,"Aktiviteter"]
[]
[null,"Afklaring, vejledning mv. \nSkriv navn på kursus",null,"Medarbejderens timeforbug (timer)","Evt. deltagerbetaling (kr.)"]
[]
[]
[]
[]
[]
[null,"Samlet antal timer (udregner selv)",null,{"$f":"SUM(D15:D19)","v":0}]
[null,"Samlet lønkompensation (udregner selv)",null,{"$f":"D20*D7","v":0}]
[null,"Samlet deltagerbeltaing (udregner selv)",null,{"$f":"SUM(E15:E19)","v":0}]
[]
[null,"Erhversrettet efteruddannelse\nSkriv navn på efteruddannelse",null,"Medarbejderens timeforbrug (timer)","Evt. deltagerbetaling (kr.)"]
[]
[]
[]
[]
[]
[]
[]
[]
[]
[]
[]
[null,"Kørsel/transport (angives som faktisk udgift)"]
[null,"Samlet antal timer (udregner selv)",null,{"$f":"SUM(D25:D36)","v":0}]
[null,"Samlet lønkompensation (udregner selv)",null,{"$f":"D37*D7","v":0}]
[null,"Samlet deltagerbetaling (udregner selv)",null,{"$f":"SUM(E25:E36)","v":0}]
[]
[null,"Praktik"]
[null,"Navn på virksomhed og p-nummer"]
[null,"Medarbejderens timeforbrug",null,null,{"$f":"IF(D43>C46*0.5,\"Praktik må maksimalt udgøre 50% af det samlede tidsforbrug.\",\" \")","v":" "}]
[null,"Samlet lønkompensation for praktikopholdet",null,{"$f":"IF(D43>C46*0.5,\"IKKE MULIGT\",D43*(IF(D8>261,260,D8)))","v":0}]
[]
[null,"Samlet tidsforbrug ",{"$f":"IF(D43+D37+D20>300,\"IKKE MULIGT\",D43+D37+D20)","v":0},{"$f":"IF(C46>300,\"Det maksimale tidsforbrug er 300 timer\",\" \")","v":" "}]
[]
[null,"Tidsforbrug til administration","Antal timer","Beløb"]
[null,"Der kan godtgøres op til 5 timer.",null,{"$f":"IF(C49>5,\"Der kan maksimalt godtgøres 5 timer pr. medarbejder.\",C49*260)","v":0}]
[]
[null,"Samlet tilsagnsramme i kr. (maksimal støtte til sporskiftepakken): ",null,{"$f":"IF(C46>300,0,MIN(D44+D39+D38+D22+D21+D49,120000))","v":0},{"$f":"IF(D51=120000,\"Det maksimale tilsagn pr. sporskiftepakke er nået, og det overstigende beløb er derfor selvbetaling.\",\"\")","v":""}]
[]
[]
[null,"Selvbetaling i kr. (udgifter udover den øvre tilsagnsramme)",null,{"$f":"IF(C46>300,0,IF(D51=120000,D39+D22+D38+D44+D21+D49-120000,0))","v":0}]

{"sheet":"Medarbejder 15","index":15,"n_rows":54,"n_cols":5,"rows_kept":54,"cut":false,"hidden":true,"merged":[[14,1,14,2],[6,1,6,2],[7,1,7,2],[8,1,8,3],[9,1,9,3],[13,1,13,2],[30,1,30,2],[15,1,15,2],[16,1,16,2],[17,1,17,2],[18,1,18,2],[23,1,23,2],[24,1,24,2],[25,1,25,2],[26,1,26,2],[27,1,27,2],[28,1,28,2],[29,1,29,2],[50,3,51,3],[31,1,31,2],[32,1,32,2],[33,1,33,2],[34,1,34,2],[35,1,35,2],[50,1,51,2]]}
[]
[null,null,"Budget/Regnskab for sporskiftepakken"]
[]
[null,null,"Oplysninger om medarbejderen"]
[]
[{"$f":"_xlfn.NUMBERVALUE(RIGHT(C6,2))","v":15},null,"Medarbejder 15"]
[null,"Medarbejderens lønkompensation fra sporskifte (kr./t.) Maks 260 kr.",null,{"$f":"IF(D8=\"\",0,MIN(D8,260))","v":0}]
[null,"Medarbejderens timesats (kr./t.)"]
[null,"Beskriv herunder hvad formålet med den planlagte sporskiftepakke er for medarbejderen:"]
[]
[]
[null,null,"Aktiviteter"]
[]
[null,"Afklaring, vejledning mv. \nSkriv navn på kursus",null,"Medarbejderens timeforbug (timer)","Evt. deltagerbetaling (kr.)"]
[]
[]
[]
[]
[]
[null,"Samlet antal timer (udregner selv)",null,{"$f":"SUM(D15:D19)","v":0}]
[null,"Samlet lønkompensation (udregner selv)",null,{"$f":"D20*D7","v":0}]
[null,"Samlet deltagerbeltaing (udregner selv)",null,{"$f":"SUM(E15:E19)","v":0}]
[]
[null,"Erhversrettet efteruddannelse\nSkriv navn på efteruddannelse",null,"Medarbejderens timeforbrug (timer)","Evt. deltagerbetaling (kr.)"]
[]
[]
[]
[]
[]
[]
[]
[]
[]
[]
[]
[null,"Kørsel/transport (angives som faktisk udgift)"]
[null,"Samlet antal timer (udregner selv)",null,{"$f":"SUM(D25:D36)","v":0}]
[null,"Samlet lønkompensation (udregner selv)",null,{"$f":"D37*D7","v":0}]
[null,"Samlet deltagerbetaling (udregner selv)",null,{"$f":"SUM(E25:E36)","v":0}]
[]
[null,"Praktik"]
[null,"Navn på virksomhed og p-nummer"]
[null,"Medarbejderens timeforbrug",null,null,{"$f":"IF(D43>C46*0.5,\"Praktik må maksimalt udgøre 50% af det samlede tidsforbrug.\",\" \")","v":" "}]
[null,"Samlet lønkompensation for praktikopholdet",null,{"$f":"IF(D43>C46*0.5,\"IKKE MULIGT\",D43*(IF(D8>261,260,D8)))","v":0}]
[]
[null,"Samlet tidsforbrug ",{"$f":"IF(D43+D37+D20>300,\"IKKE MULIGT\",D43+D37+D20)","v":0},{"$f":"IF(C46>300,\"Det maksimale tidsforbrug er 300 timer\",\" \")","v":" "}]
[]
[null,"Tidsforbrug til administration","Antal timer","Beløb"]
[null,"Der kan godtgøres op til 5 timer.",null,{"$f":"IF(C49>5,\"Der kan maksimalt godtgøres 5 timer pr. medarbejder.\",C49*260)","v":0}]
[]
[null,"Samlet tilsagnsramme i kr. (maksimal støtte til sporskiftepakken): ",null,{"$f":"IF(C46>300,0,MIN(D44+D39+D38+D22+D21+D49,120000))","v":0},{"$f":"IF(D51=120000,\"Det maksimale tilsagn pr. sporskiftepakke er nået, og det overstigende beløb er derfor selvbetaling.\",\"\")","v":""}]
[]
[]
[null,"Selvbetaling i kr. (udgifter udover den øvre tilsagnsramme)",null,{"$f":"IF(C46>300,0,IF(D51=120000,D39+D22+D38+D44+D21+D49-120000,0))","v":0}]

{"sheet":"Budget","index":16,"n_rows":19,"n_cols":9,"rows_kept":19,"cut":false,"hidden":false,"merged":[[0,4,1,5],[17,1,17,2]]}
[{"$f":"SUM(H9:H11)","v":0},null,null,null,"Budget for sporskiftepakken"]
[{"$f":"H11","v":0}]
[{"$f":"LEN(C5)","v":0}]
[{"$f":"LEN(C6)","v":0},"Virksomhedsnavn"]
[null,"P-nummer"]
[null,"CVR-nummer"]
[]
[null,"Medarbejdere","Medarbejderens lønkompensation fra sporskifte (kr./t.)","Samlede udgifter brugt på afklaring, vejledning og erhvervsrettet efteruddannelse","Deltagerbetaling alle kurser *","Samlede udgifter brugt til praktikophold","Administrationsbidrag","Samlede udgifter "]
[null,"Medarbejder 1",{"$f":"INDIRECT(\"'\" & B9 & \"'!D7\")","v":0},{"$f":"INDIRECT(\"'\" & B9 & \"'!D21\")+INDIRECT(\"'\" & B9 & \"'!D38\")","v":0},{"$f":"INDIRECT(\"'\" & B9 & \"'!D22\")+INDIRECT(\"'\" & B9 & \"'!D39\")","v":0},{"$f":"INDIRECT(\"'\" & B9 & \"'!D44\")","v":0},{"$f":"INDIRECT(\"'\" & B9 & \"'!D49\")","v":0},{"$f":"MIN(G9+F9+E9+D9,120000)","v":0},{"$f":"INDIRECT(\"'\" & B9 & \"'!D54\")","v":0}]
[]
[null,"Revision",null,null,null,null,null,{"$f":"IF(SUM(H9:H10)>500000,25000,0)","v":0},{"$f":"IF(H13>500000,\"Da det samlede tilsagn overstiger 500.000 kr. er der tilføjet revision.\",\" \")","v":" "}]
[]
[null,"Samlet støttebeløb",null,null,null,null,null,{"$f":"SUM(H9:H12)","v":0},{"$f":"SUM(I9:I10)","v":0}]
[]
[null,"*Hvis der er tale om AMU-kurser, behøver STAR ikke at godkende kurset. Ved alle andre former for kurser eller efterudannelse"]
[null,"skal der indsendes bilag med oplysning om kursets indhold, kursusudbyder, pris mm."]
[]
[null,"Samlet selvbetaling i kr. (udgifter udover den øvre tilsagnsramme)",null,{"$f":"I13","v":0}]
[" "]

{"sheet":"Slutregnskab","index":17,"n_rows":31,"n_cols":10,"rows_kept":31,"cut":false,"hidden":false,"merged":[[0,4,1,5]]}
[null,null,null,null,"Slutregnskab for sporskiftepakken"]
[]
[]
[null,"Virksomhedsnavn",null,null,null,null,null,"Projekt periode"]
[null,"P-nummer",null,null,null,null,null,"Fra:",null,{"$f":"IF(I5=\"\",\"Husk at indsætte startdato\",\"\")","v":"Husk at indsætte startdato"}]
[null,"CVR-nummer",null,null,null,null,null,"Til:",null,{"$f":"IF(I6=\"\",\"Husk at indsætte slutdato\",\"\")","v":"Husk at indsætte slutdato"}]
[]
[null,"Medarbejdere","Medarbejderens lønkompensation fra sporskifte (kr./t.)","Samlede udgifter brugt på afklaring, vejledning og erhvervsrettet efteruddannelse","Deltagerbetaling alle kurser","Samlede udgifter brugt til praktikophold","Administrationsbidrag","Samlede udgifter ","Tilsagnsbeløb*"]
[null,"Medarbejder 1",{"$f":"INDIRECT(\"'\" & B9 & \"'!D7\")","v":0},{"$f":"INDIRECT(\"'\" & B9 & \"'!D21\")+INDIRECT(\"'\" & B9 & \"'!D38\")","v":0},{"$f":"INDIRECT(\"'\" & B9 & \"'!D22\")+INDIRECT(\"'\" & B9 & \"'!D39\")","v":0},{"$f":"INDIRECT(\"'\" & B9 & \"'!D44\")","v":0},{"$f":"INDIRECT(\"'\" & B9 & \"'!D49\")","v":0},{"$f":"MIN(G9+F9+E9+D9,120000)","v":0},null,{"$f":"INDIRECT(\"'\" & B9 & \"'!D54\")","v":0}]
[]
[]
[null,null,null,null,"Ledelseserklæring"]
[null,"Ledelseserklæringen knytter sig til det endelige projektregnskab og er underskrevet af den økonomisk ansvarlige i den tilskudsansvarlige organisation. "]
[]
[null,"Ved krav om revisorpåtegning af regnskabet er erklæringen underskrevet af den projektansvarlige / den økonomisk ansvarlige i den tilskudsansvarlige organisation."]
[]
[null,"Efter projektets bedste overbevisning bekræfter undertegnede hermed følgende forhold:"]
[]
[null,"1) At tilskuddet er anvendt til formålet og de poster, som fremgår af regnskabet"]
[null,"2) At samtlige transaktioner, herunder alle indtægter og omkostninger for projektet, er medtaget i projektregnskabet. "]
[null,"3) At budget og regskab er periodiseret korrekt"]
[null,"4) At projektet er afsluttet og at udgifterne er afholdt i den periode, der fremgår af regnskabet."]
[null,"5) At tilskudsbetingelserne og forudsætningerne for tilskuddet er overholdt"]
[null,"6) At der er taget økonomiske hensyn ved projektets gennemførelse"]
[null,"7) At projektet har oplyst om formodede og konstaterede besvigelser"]
[]
[]
[null,"Navn på projektansvarlig"]
[]
[]
[null,"Underskrift (projektansvarlig)",null,null,null,null,"Dato"]